[Event "58th Akiba Rubinstein C 2022"]
[Site "Polanica-Zdroj"]
[Date "2022.08.13"]
[Round "1.7"]
[White "Kwiecien, Zbigniew"]
[Black "Janocha, Jan"]
[Result "1-0"]
[ECO "C07"]
[WhiteElo "1937"]
[BlackElo "1547"]
[Annotator "TA"]
[PlyCount "97"]
[EventDate "2022.08.13"]
[EventCountry "POL"]
[SourceTitle "playchess.com"]
[Source "ChessBase"]
[SourceQuality "1"]
[TimeControl "40/5400+30:1800+30"]

{[%evp 12,97,0,7,0,0,0,0,-5,-27,-24,-58,-29,-21,-21,-23,0,0,391,389,371,375,484,406,456,394,559,464,589,591,569,452,434,436,515,520,514,501,560,560,618,656,654,654,646,646,666,672,766,768,760,735,753,736,720,713,824,808,1118,595,591,578,581,547,1148,1108,1196,1156,2080,1179,12833,12833,12834,312,12834,12833,12844,12844,12845,12845,12845,12844,12845,12846,12848,12847,12849,12848]} 1. e4 {[%emt 0:00:16]} e6 {[%emt 0:00:16]} 2. d4 {[%emt 0:00:12]} d5 {[%emt 0:00:16]} 3. Nd2 {[%emt 0:00:13]} c5 {[%emt 0:01:05]} 4. c3 {[%emt 0:00:12]} Nc6 {[%emt 0:00:31]} 5. Ngf3 {[%emt 0:01:38]} cxd4 {[%emt 0:00:53]} 6. cxd4 {[%emt 0:00:12]} dxe4 {[%emt 0:03:26]} 7. Nxe4 {[%emt 0:00:04]} Nf6 {C07: French Tarrasch: 3...c5, 4 Ngf3 and 4 exd5 Qxd5.} 8. Nxf6+ {[%emt 0:00:36]} Qxf6 {[%emt 0:00:12]} 9. Bd3 {[%emt 0:02:03] [#] Threatens to win with Bg5.} Bb4+ {[%emt 0:03:02] The position is equal.} 10. Ke2 {[%emt 0:00:35] And now Bg5 would win.} h6 {[%emt 0:06:44] [#] Against Bg5} (10... Nxd4+ $2 11. Nxd4 Bd7 12. Nf3 $18) 11. a3 $146 {[%emt 0:00:22]} ({Predecessor:} 11. Be3 Bd7 12. Qb3 Ba5 13. Rhd1 Bb6 14. Kf1 O-O 15. Bc2 Ne7 16. Ne5 Rad8 17. Kg1 {0-1 (51) Ahmed,E (2394)-Alakraby,S Sanaa 2002}) 11... Bd6 {[%emt 0:00:51]} 12. Re1 {[%emt 0:01:34]} O-O {[%emt 0:00:27]} (12... Nxd4+ $2 13. Nxd4 O-O {[#]} 14. Kf1 $1 $18) 13. Kf1 {[%emt 0:03:46]} Bc7 {[%emt 0:03:08]} (13... Nxd4 $2 14. Nxd4 Rd8 15. Nf3 $18) 14. Be3 {[%emt 0:03:12]} b6 $2 {[%emt 0:05:00][%mdl 8192] Black is now going downhill.} (14... Rd8 $11 {and Black stays safe.}) 15. Rc1 $18 {[%emt 0:00:49]} Bb7 {[%emt 0:01:18]} 16. Be4 {[%emt 0:04:14]} e5 {[%emt 0:05:32]} 17. d5 {[%emt 0:03:42]} Rfd8 {[%emt 0:03:58]} 18. Qa4 {[%emt 0:02:08]} ({Less strong is} 18. Qe2 Nb8 $18) 18... Nd4 {[%emt 0:01:26]} (18... b5 $142 19. Qc2 Nd4 20. Bxd4 exd4 21. Qxc7 Bxd5 22. Bxd5 Rxd5) 19. Rxc7 {[%emt 0:01:19]} Bxd5 {[%emt 0:01:01]} 20. Bxd5 {[%emt 0:07:02]} Rxd5 {[%emt 0:00:02]} 21. Nxd4 {[%emt 0:01:43]} exd4 {[%emt 0:00:44]} 22. Bd2 {[%emt 0:03:08]} b5 {[%emt 0:03:08]} 23. Qb3 {[%emt 0:01:49]} Rf5 {[%emt 0:04:42]} 24. Qg3 {[%emt 0:00:47]} Kh7 {[%emt 0:02:01]} 25. Ree7 {[%emt 0:01:59][%cal Be1e7,Be7d7,Bd7d4][%mdl 32]} Qg6 {[%emt 0:01:43]} 26. Qxg6+ {[%emt 0:02:30]} Kxg6 {[%emt 0:00:02]} 27. Red7 {[%emt 0:00:28]} a5 {[%emt 0:00:49]} 28. Rxd4 {[%emt 0:00:26]} b4 {[%emt 0:00:08]} 29. g4 {[%emt 0:00:52]} Rb5 {[%emt 0:00:10]} 30. Rd6+ {[%emt 0:00:24]} f6 {[%emt 0:00:15]} 31. a4 {[%emt 0:00:56]} Re5 {[%emt 0:00:29]} 32. Rdd7 {[%emt 0:00:43][%csl Gc7][%cal Rd7g7]} Rg8 {[%emt 0:00:16]} 33. f4 {[%emt 0:01:17]} Re4 {[%emt 0:00:16]} 34. Kf2 {[%emt 0:00:09]} b3 {[%emt 0:00:50]} 35. Bxa5 {[%emt 0:00:49]} Rxf4+ {[%emt 0:00:45]} 36. Kg3 {[%emt 0:00:01]} Rxa4 {[%emt 0:00:15]} 37. Bc3 {[%emt 0:00:04] Hoping for h4.} Re4 {[%emt 0:01:25]} 38. h4 {[%emt 0:00:43] h5+ would kill now.} h5 {[%emt 0:04:03]} 39. gxh5+ {[%emt 0:05:00]} Kxh5 {[%emt 0:00:13]} 40. Rd5+ {[%emt 0:00:00]} g5 {[%emt 0:00:00]} 41. hxg5 {[%emt 0:01:11]} fxg5 {[%emt 0:02:38]} 42. Rh7+ {[%emt 0:00:14]} Kg6 {[%emt 0:00:21]} 43. Rb7 {[%emt 0:00:04] White is clearly winning.} Rge8 {[%emt 0:01:17]} 44. Rg7+ {[%emt 0:01:05]} Kh6 {[%emt 0:00:28]} 45. Rgxg5 {[%emt 0:01:10]} Re3+ {[%emt 0:00:19]} 46. Kf2 {[%emt 0:00:15] Intending Rh5+ and mate.} Rxc3 {[%emt 0:01:39]} 47. bxc3 {[%emt 0:00:42]} Rb8 {[%emt 0:00:12]} 48. Rg1 {[%emt 0:00:03]} b2 {[%emt 0:00:04]} 49. Rb1 {[%emt 0:00:16] Weighted Error Value: White=0.21 (precise) /Black=0.76} 1-0

[Event "58th Akiba Rubinstein C 2022"]
[Site "Polanica-Zdroj"]
[Date "2022.08.13"]
[Round "1.8"]
[White "Urban, Marek"]
[Black "Pyka, Roman"]
[Result "0-1"]
[ECO "A51"]
[WhiteElo "1545"]
[BlackElo "1881"]
[Annotator "NA RC COMBH"]
[PlyCount "66"]
[EventDate "2022.08.13"]
[EventCountry "POL"]
[SourceTitle "playchess.com"]
[Source "ChessBase"]
[SourceQuality "1"]
[TimeControl "40/5400+30:1800+30"]

1. d4 {[%emt 0:00:05]} Nf6 {[%emt 0:00:07]} 2. c4 {[%emt 0:00:07]} e5 {[%emt 0:00:07]} 3. d5 {[%emt 0:01:31]} Bc5 {[%emt 0:00:08]} 4. e3 {[%emt 0:04:15]} d6 {[%emt 0:01:00]} 5. Be2 {[%emt 0:00:47]} O-O {[%emt 0:00:26]} 6. Nc3 {[%emt 0:00:22]} a6 {[%emt 0:03:12]} 7. Nf3 {[%emt 0:02:24]} Bf5 {[%emt 0:02:57]} 8. Nh4 {[%emt 0:02:03]} Bd7 {[%emt 0:00:04]} 9. Nf3 {[%emt 0:01:00]} Bb4 {[%emt 0:01:22]} 10. O-O {[%emt 0:00:44]} Bxc3 {[%emt 0:00:08]} 11. bxc3 {[%emt 0:00:03]} b6 {[%emt 0:00:34]} 12. Qc2 {[%emt 0:02:53]} Bg4 {[%emt 0:01:30]} 13. a4 {[%emt 0:02:00]} a5 {[%emt 0:00:07]} 14. e4 {[%emt 0:00:53]} Nbd7 {[%emt 0:00:31]} 15. Ba3 {[%emt 0:01:49]} Ne8 {[%emt 0:04:01]} 16. h3 {[%emt 0:02:50]} Bh5 {[%emt 0:00:50]} 17. Nh2 {[%emt 0:02:12]} Bg6 {[%emt 0:00:11]} 18. Bd3 Nef6 {[%emt 0:05:08]} 19. Nf3 {[%emt 0:08:49]} Nxe4 {[%emt 0:02:10]} 20. Bxe4 {[%emt 0:04:42]} f5 {[%emt 0:00:09]} 21. Bxf5 {[%emt 0:03:15]} Bxf5 {[%emt 0:03:02]} 22. Qe2 {[%emt 0:00:28]} Qf6 {[%emt 0:02:14]} 23. Nh2 {[%emt 0:02:39]} Qg6 {[%emt 0:00:50]} 24. Qe3 {[%emt 0:03:59]} Bd3 {[%emt 0:00:52]} 25. Rfd1 Bxc4 26. Rd2 {[%emt 0:04:21]} Rf4 {[%emt 0:01:27]} 27. f3 Raf8 28. Kh1 {[%emt 0:05:25]} Nf6 {[%emt 0:03:43]} 29. Rad1 Bb3 30. Re1 Nxd5 31. Rxd5 {[%emt 0:07:22]} Bxd5 {[%emt 0:01:09]} 32. Bc1 Rxa4 33. Qe2 {[%emt 0:02:16]} Bc4 {[%emt 0:03:17]} 0-1

[Event "58th Akiba Rubinstein C 2022"]
[Site "Polanica-Zdroj"]
[Date "2022.08.13"]
[Round "1.9"]
[White "Gromczak, Dariusz"]
[Black "Kwiatkowski, Zygmunt"]
[Result "1-0"]
[ECO "B10"]
[WhiteElo "1906"]
[BlackElo "1509"]
[Annotator "TA"]
[PlyCount "23"]
[EventDate "2022.08.13"]
[EventCountry "POL"]
[SourceTitle "playchess.com"]
[Source "ChessBase"]
[SourceQuality "1"]
[TimeControl "40/5400+30:1800+30"]

{[%evp 15,23,10,16,-6,37,33,113,61,451,450]} 1. e4 c6 2. Nc3 d5 3. Nf3 dxe4 4. Nxe4 Nd7 5. Bc4 Ngf6 6. Ng3 e6 7. d4 Be7 8. O-O O-O 9. Re1 {B17: Caro-Kann: Modern Line (4...Nd7).} c5 (9... b5 $5 {[%cal Rb5c4]} 10. Bd3 Bb7 $14) 10. c3 b6 (10... Qc7 $14) 11. Qe2 {[#] White is much more active. The black rooks are badly placed.} (11. Ng5 $16) 11... Nd5 $146 {[%mdl 8192] [#]} (11... Bd6 $14) ({Predecessor:} 11... Bb7 12. Ng5 Qc7 13. Bd2 Bd6 14. Rad1 a6 15. Bc1 Rfe8 16. Bd3 Nf8 17. dxc5 Bxc5 {0-1 (38) Deppe,A-Petzold,K Germany 1995}) 12. Bxd5 {Black got outplayed after the opening.  Weighted Error Value: White=0.21 (precise) /Black=1.51} 1-0

[Event "58th Akiba Rubinstein C 2022"]
[Site "Polanica-Zdroj"]
[Date "2022.08.13"]
[Round "1.10"]
[White "Szymanski, Jerzy"]
[Black "Fikus, Zygmunt"]
[Result "0-1"]
[ECO "D02"]
[WhiteElo "1452"]
[BlackElo "1891"]
[Annotator "NA RC COMBH"]
[PlyCount "67"]
[EventDate "2022.08.13"]
[EventCountry "POL"]
[SourceTitle "playchess.com"]
[Source "ChessBase"]
[SourceQuality "1"]
[TimeControl "40/5400+30:1800+30"]

1. d4 {[%emt 0:00:30]} d5 {[%emt 0:00:13]} 2. Nf3 {[%emt 0:00:00]} Nf6 {[%emt 0:00:07]} 3. Bf4 {[%emt 0:00:00]} e6 {[%emt 0:02:32]} 4. e3 {[%emt 0:00:08]} Bd6 {[%emt 0:00:09]} 5. Bg3 {[%emt 0:00:07]} Ne4 {[%emt 0:01:01]} 6. Ne5 {[%emt 0:03:54]} Nxg3 {[%emt 0:04:27]} 7. hxg3 {[%emt 0:00:15]} Bxe5 {[%emt 0:01:02]} 8. dxe5 {[%emt 0:00:19]} Qg5 {[%emt 0:00:31]} 9. Rh5 {[%emt 0:01:44]} Qe7 {[%emt 0:00:03]} 10. Qg4 {[%emt 0:04:58]} g6 {[%emt 0:00:35]} 11. Rh6 {[%emt 0:01:22]} Nd7 {[%emt 0:00:39]} 12. Qf4 {[%emt 0:05:58]} g5 {[%emt 0:08:15]} 13. Qd4 {[%emt 0:04:56]} Qf8 {[%emt 0:06:38]} 14. Rh3 {[%emt 0:06:32]} Qg7 {[%emt 0:08:02]} 15. f4 {[%emt 0:01:57]} gxf4 {[%emt 0:01:11]} 16. gxf4 {[%emt 0:03:19]} f6 {[%emt 0:04:52]} 17. exf6 {[%emt 0:01:57]} Qxf6 {[%emt 0:00:46]} 18. Qxf6 {[%emt 0:07:25]} Nxf6 {[%emt 0:00:02]} 19. Rg3 {[%emt 0:09:13]} Kf7 {[%emt 0:00:37]} 20. Nd2 {[%emt 0:00:46]} Bd7 {[%emt 0:01:58]} 21. Bd3 {[%emt 0:01:22]} Rag8 {[%emt 0:00:42]} 22. Kf2 Rxg3 {[%emt 0:02:22]} 23. Kxg3 {[%emt 0:00:58]} Rg8+ {[%emt 0:00:09]} 24. Kf2 {[%emt 0:02:33]} c5 {[%emt 0:00:48]} 25. c3 {[%emt 0:01:24]} e5 {[%emt 0:03:08]} 26. Be2 {[%emt 0:07:24]} e4 {[%emt 0:02:17]} 27. Rh1 {[%emt 0:01:04]} Bg4 {[%emt 0:01:27]} 28. Re1 {[%emt 0:09:13]} Ke6 {[%emt 0:01:48]} 29. Nf1 {[%emt 0:05:12]} Bxe2 {[%emt 0:06:32]} 30. Rxe2 {[%emt 0:00:10]} Ng4+ {[%emt 0:00:09]} 31. Kg1 {[%emt 0:01:23]} h5 {[%emt 0:01:31]} 32. Nh2 Nf6 {[%emt 0:00:21]} 33. Kf2 {[%emt 0:02:31]} h4 {[%emt 0:06:28]} 34. Re1 0-1

[Event "58th Akiba Rubinstein C 2022"]
[Site "Polanica-Zdroj"]
[Date "2022.08.13"]
[Round "1.11"]
[White "Kawula, Andrzej"]
[Black "Staroniewicz, Janusz"]
[Result "1-0"]
[ECO "D30"]
[WhiteElo "1870"]
[BlackElo "1486"]
[Annotator "NA RC COMBH"]
[PlyCount "73"]
[EventDate "2022.08.13"]
[EventCountry "POL"]
[SourceTitle "playchess.com"]
[Source "ChessBase"]
[SourceQuality "1"]
[TimeControl "40/5400+30:1800+30"]

1. d4 {[%emt 0:00:10]} d5 {[%emt 0:00:03]} 2. c4 {[%emt 0:00:09]} e6 {[%emt 0:00:30]} 3. Nf3 {[%emt 0:00:19]} Nf6 {[%emt 0:00:23]} 4. Bg5 {[%emt 0:01:09]} Nbd7 {[%emt 0:01:15]} 5. e3 {[%emt 0:00:59]} b6 {[%emt 0:03:27]} 6. cxd5 {[%emt 0:00:29]} exd5 {[%emt 0:00:35]} 7. Nc3 {[%emt 0:00:24]} h6 {[%emt 0:02:09]} 8. Bh4 {[%emt 0:00:41]} Be7 {[%emt 0:04:05]} 9. Bb5 {[%emt 0:01:11]} Bb7 {[%emt 0:04:51]} 10. Ne5 {[%emt 0:03:37]} O-O {[%emt 0:07:45]} 11. Bc6 Bxc6 {[%emt 0:02:27]} 12. Nxc6 {[%emt 0:10:53]} Qe8 {[%emt 0:00:46]} 13. Nxe7+ {[%emt 0:04:25]} Qxe7 {[%emt 0:00:55]} 14. Nxd5 {[%emt 0:06:38]} Qe4 {[%emt 0:02:28]} 15. Nxf6+ {[%emt 0:00:51]} Nxf6 {[%emt 0:00:34]} 16. Bxf6 {[%emt 0:00:41]} Qxg2 {[%emt 0:01:03]} 17. Ke2 {[%emt 0:04:00]} Qg4+ {[%emt 0:02:14]} 18. Kd2 {[%emt 0:02:35]} Qxd1+ {[%emt 0:00:31]} 19. Raxd1 {[%emt 0:00:07]} gxf6 {[%emt 0:00:29]} 20. Rc1 {[%emt 0:00:11]} Rac8 {[%emt 0:06:31]} 21. Rc6 {[%emt 0:02:41]} Kh7 {[%emt 0:08:40]} 22. Rhc1 {[%emt 0:01:01]} Rg8 {[%emt 0:17:54]} 23. Rxc7 {[%emt 0:02:59]} Rxc7 {[%emt 0:00:48]} 24. Rxc7 {[%emt 0:00:06]} Rg2 {[%emt 0:01:02]} 25. Ke2 {[%emt 0:00:39]} Kg6 {[%emt 0:00:54]} 26. h4 {[%emt 0:00:50]} Rh2 {[%emt 0:03:41]} 27. Rxa7 {[%emt 0:00:34]} Rxh4 {[%emt 0:00:13]} 28. Rb7 {[%emt 0:00:08]} Rg4 {[%emt 0:03:25]} 29. Rxb6 {[%emt 0:02:54]} h5 {[%emt 0:00:53]} 30. Kf3 {[%emt 0:01:00]} Kg5 {[%emt 0:01:40]} 31. Rb8 {[%emt 0:00:32]} Kf5 {[%emt 0:01:26]} 32. Rh8 {[%emt 0:01:03]} Rg5 {[%emt 0:00:57]} 33. b4 {[%emt 0:02:17]} Ke6 {[%emt 0:01:15]} 34. a4 {[%emt 0:00:25]} Kd5 {[%emt 0:02:29]} 35. b5 {[%emt 0:02:57]} Kd6 {[%emt 0:03:25]} 36. Rc8 {[%emt 0:02:12]} Rg1 {[%emt 0:03:22]} 37. b6 {[%emt 0:02:06]} 1-0

[Event "58th Akiba Rubinstein C 2022"]
[Site "Polanica-Zdroj"]
[Date "2022.08.13"]
[Round "1.12"]
[White "Wilczynski, Adam"]
[Black "Krasowski, Slawomir"]
[Result "1/2-1/2"]
[ECO "A15"]
[WhiteElo "1533"]
[BlackElo "1855"]
[Annotator "NA RC COMBH"]
[PlyCount "58"]
[EventDate "2022.08.13"]
[EventCountry "POL"]
[SourceTitle "playchess.com"]
[Source "ChessBase"]
[SourceQuality "1"]
[TimeControl "40/5400+30:1800+30"]

1. c4 {[%emt 0:00:10]} Nf6 {[%emt 0:00:09]} 2. g3 {[%emt 0:00:15]} g6 {[%emt 0:00:09]} 3. Bg2 {[%emt 0:00:13]} Bg7 {[%emt 0:00:10]} 4. e4 {[%emt 0:00:26]} e5 {[%emt 0:00:37]} 5. Ne2 {[%emt 0:00:27]} O-O {[%emt 0:01:00]} 6. O-O {[%emt 0:00:24]} Nc6 {[%emt 0:00:16]} 7. Nbc3 {[%emt 0:00:35]} d6 {[%emt 0:00:23]} 8. d3 {[%emt 0:00:42]} Nd4 {[%emt 0:01:32]} 9. Nxd4 {[%emt 0:01:02]} exd4 {[%emt 0:00:02]} 10. Ne2 {[%emt 0:00:44]} c5 {[%emt 0:01:32]} 11. Bg5 {[%emt 0:02:17]} h6 {[%emt 0:02:05]} 12. Bd2 {[%emt 0:01:09]} Rb8 {[%emt 0:02:18]} 13. a4 {[%emt 0:03:26]} Bd7 {[%emt 0:02:17]} 14. h3 {[%emt 0:01:42]} a5 {[%emt 0:02:35]} 15. Qc1 {[%emt 0:05:24]} Kh7 {[%emt 0:00:32]} 16. f4 {[%emt 0:01:15]} b6 {[%emt 0:00:29]} 17. g4 {[%emt 0:03:46]} Qe8 {[%emt 0:01:40]} 18. Qd1 {[%emt 0:03:16]} Ng8 {[%emt 0:02:52]} 19. f5 {[%emt 0:02:48]} g5 20. Be1 {[%emt 0:03:16]} Be5 {[%emt 0:02:19]} 21. b3 {[%emt 0:01:59]} Nf6 {[%emt 0:01:42]} 22. Bg3 {[%emt 0:02:29]} Rh8 {[%emt 0:03:37]} 23. Qe1 {[%emt 0:03:02]} Kg7 {[%emt 0:02:41]} 24. Bxe5 {[%emt 0:02:00]} Qxe5 {[%emt 0:00:55]} 25. Qg3 {[%emt 0:00:29]} h5 {[%emt 0:03:21]} 26. gxh5 {[%emt 0:03:15]} Rxh5 {[%emt 0:01:12]} 27. Nf4 {[%emt 0:01:37]} Rh6 {[%emt 0:01:34]} 28. Qxg5+ {[%emt 0:00:46]} Kh7 {[%emt 0:00:13]} 29. Qg3 {[%emt 0:05:12]} Rg8 1/2-1/2

[Event "58th Akiba Rubinstein C 2022"]
[Site "Polanica-Zdroj"]
[Date "2022.08.13"]
[Round "1.13"]
[White "Bukowska, Katarzyna"]
[Black "Nisztuk, Michal"]
[Result "1/2-1/2"]
[ECO "C67"]
[WhiteElo "1842"]
[BlackElo "1548"]
[Annotator "NA RC COMBH"]
[PlyCount "54"]
[EventDate "2022.08.13"]
[EventCountry "POL"]
[SourceTitle "playchess.com"]
[Source "ChessBase"]
[SourceQuality "1"]
[TimeControl "40/5400+30:1800+30"]

1. e4 {[%emt 0:00:05]} e5 {[%emt 0:00:08]} 2. Nf3 {[%emt 0:00:07]} Nc6 {[%emt 0:00:12]} 3. Bb5 {[%emt 0:00:16]} Nf6 {[%emt 0:00:19]} 4. O-O {[%emt 0:01:48]} Nxe4 {[%emt 0:00:12]} 5. d3 {[%emt 0:02:44]} Nd6 {[%emt 0:00:34]} 6. Bxc6 {[%emt 0:01:07]} dxc6 {[%emt 0:00:09]} 7. Nxe5 {[%emt 0:00:41]} Be7 {[%emt 0:00:39]} 8. Nc3 {[%emt 0:02:11]} Bf6 {[%emt 0:00:43]} 9. Bf4 {[%emt 0:01:29]} O-O {[%emt 0:01:43]} 10. Re1 {[%emt 0:02:53]} Re8 {[%emt 0:01:05]} 11. h3 {[%emt 0:14:29]} Be6 {[%emt 0:00:43]} 12. Nf3 {[%emt 0:04:46]} Nf5 {[%emt 0:03:38]} 13. Qd2 {[%emt 0:04:38]} Nh4 {[%emt 0:03:37]} 14. Nxh4 {[%emt 0:05:07]} Bxh4 {[%emt 0:00:17]} 15. Ne4 {[%emt 0:01:18]} Bd5 {[%emt 0:04:30]} 16. Rad1 {[%emt 0:02:57]} b5 {[%emt 0:06:00]} 17. a4 {[%emt 0:07:41]} a6 {[%emt 0:00:55]} 18. b3 {[%emt 0:08:23]} Qd7 {[%emt 0:04:28]} 19. c4 {[%emt 0:01:32]} Bxe4 {[%emt 0:05:08]} 20. dxe4 {[%emt 0:02:15]} Qe7 {[%emt 0:05:59]} 21. Qd7 {[%emt 0:03:37]} Qc5 {[%emt 0:02:12]} 22. Be3 {[%emt 0:01:52]} Qb4 {[%emt 0:01:48]} 23. Bd4 {[%emt 0:04:46]} Rad8 {[%emt 0:06:43]} 24. Qxc6 {[%emt 0:03:11]} Qxb3 {[%emt 0:14:37]} 25. axb5 {[%emt 0:02:02]} axb5 {[%emt 0:01:04]} 26. Qxb5 {[%emt 0:01:10]} Qa2 {[%emt 0:03:38]} 27. g3 Be7 1/2-1/2

[Event "58th Akiba Rubinstein C 2022"]
[Site "Polanica-Zdroj"]
[Date "2022.08.13"]
[Round "1.14"]
[White "Bartczak, Hanna"]
[Black "Wielgus, Jerzy"]
[Result "1/2-1/2"]
[ECO "A45"]
[WhiteElo "1479"]
[BlackElo "1832"]
[Annotator "NA RC COMBH"]
[PlyCount "111"]
[EventDate "2022.08.13"]
[EventCountry "POL"]
[SourceTitle "playchess.com"]
[Source "ChessBase"]
[SourceQuality "1"]
[TimeControl "40/5400+30:1800+30"]

1. d4 {[%emt 0:00:03]} Nf6 {[%emt 0:00:34]} 2. Nc3 {[%emt 0:00:10]} d5 {[%emt 0:00:15]} 3. Bf4 {[%emt 0:00:06]} c6 {[%emt 0:00:44]} 4. e3 {[%emt 0:00:07]} Bf5 {[%emt 0:01:12]} 5. f3 {[%emt 0:00:11]} e6 {[%emt 0:00:20]} 6. g4 {[%emt 0:00:11]} Bg6 {[%emt 0:00:18]} 7. h4 {[%emt 0:00:05]} h5 {[%emt 0:00:11]} 8. g5 {[%emt 0:00:07]} Nfd7 {[%emt 0:01:45]} 9. Bd3 {[%emt 0:00:13]} Bxd3 {[%emt 0:01:58]} 10. Qxd3 {[%emt 0:00:08]} Nb6 {[%emt 0:00:12]} 11. Nge2 {[%emt 0:02:35]} Bd6 {[%emt 0:00:17]} 12. O-O-O {[%emt 0:00:16]} Na6 {[%emt 0:00:14]} 13. e4 {[%emt 0:00:51]} Nb4 {[%emt 0:05:57]} 14. Qe3 {[%emt 0:01:54]} Nc4 {[%emt 0:00:12]} 15. Qf2 {[%emt 0:00:12]} Qb6 {[%emt 0:13:42]} 16. b3 {[%emt 0:06:23]} Bxf4+ {[%emt 0:03:15]} 17. Nxf4 {[%emt 0:00:24]} Na3 {[%emt 0:04:48]} 18. Rd2 {[%emt 0:07:32]} Qc7 {[%emt 0:15:19]} 19. Nd3 {[%emt 0:05:21]} a5 {[%emt 0:02:43]} 20. Re1 {[%emt 0:04:38]} O-O {[%emt 0:00:57]} 21. Kb2 {[%emt 0:06:50]} Naxc2 {[%emt 0:02:04]} 22. Rc1 {[%emt 0:01:56]} Nxd3+ {[%emt 0:01:43]} 23. Rxd3 {[%emt 0:00:08]} Nb4 {[%emt 0:00:08]} 24. Rd2 {[%emt 0:02:17]} Qf4 {[%emt 0:04:18]} 25. a3 {[%emt 0:00:26]} Na6 {[%emt 0:00:24]} 26. Rdc2 {[%emt 0:01:46]} dxe4 {[%emt 0:07:15]} 27. fxe4 {[%emt 0:06:25]} Qxf2 {[%emt 0:00:26]} 28. Rxf2 {[%emt 0:00:05]} Rad8 {[%emt 0:00:14]} 29. Rd1 {[%emt 0:01:21]} Rd7 {[%emt 0:01:34]} 30. d5 {[%emt 0:00:29]} exd5 {[%emt 0:08:17]} 31. exd5 {[%emt 0:00:42]} cxd5 {[%emt 0:01:41]} 32. Rxd5 {[%emt 0:00:38]} Rxd5 {[%emt 0:00:43]} 33. Nxd5 {[%emt 0:00:08]} Re8 {[%emt 0:00:13]} 34. Rf4 {[%emt 0:04:51]} Re5 {[%emt 0:02:50]} 35. Rd4 {[%emt 0:02:50]} Nc5 {[%emt 0:02:09]} 36. Nc3 {[%emt 0:02:53]} Kh7 {[%emt 0:02:04]} 37. b4 {[%emt 0:06:20]} axb4 {[%emt 0:00:21]} 38. axb4 {[%emt 0:00:06]} Na6 {[%emt 0:03:28]} 39. Kb3 {[%emt 0:05:14]} Re7 {[%emt 0:05:20]} 40. Nd5 {[%emt 0:00:00]} Re1 {[%emt 0:00:00]} 41. Kc4 {[%emt 0:05:58]} Nb8 {[%emt 0:01:32]} 42. Kb5 {[%emt 0:01:46]} Nc6 {[%emt 0:00:47]} 43. Rf4 {[%emt 0:01:09]} Re5 {[%emt 0:03:59]} 44. Kc4 {[%emt 0:01:17]} Nd8 {[%emt 0:00:13]} 45. b5 {[%emt 0:02:38]} Kg6 {[%emt 0:00:33]} 46. Kd4 {[%emt 0:11:38]} Re1 {[%emt 0:00:34]} 47. Re4 {[%emt 0:01:03]} Ne6+ {[%emt 0:00:31]} 48. Ke5 {[%emt 0:00:39]} f6+ {[%emt 0:04:34]} 49. gxf6 {[%emt 0:00:38]} Rxe4+ {[%emt 0:00:13]} 50. Kxe4 {[%emt 0:00:44]} gxf6 {[%emt 0:00:02]} 51. Ne3 {[%emt 0:04:49]} Ng7 {[%emt 0:03:47]} 52. Kd5 {[%emt 0:06:45]} Nf5 {[%emt 0:00:40]} 53. Ng2 {[%emt 0:00:43]} Kf7 {[%emt 0:01:13]} 54. Kc5 {[%emt 0:00:34]} Ke7 {[%emt 0:01:08]} 55. Kb6 {[%emt 0:00:12]} Nd4 {[%emt 0:02:54]} 56. Nf4 1/2-1/2

[Event "58th Akiba Rubinstein C 2022"]
[Site "Polanica-Zdroj"]
[Date "2022.08.13"]
[Round "1.15"]
[White "Uscinski, Marek"]
[Black "Mucha, Marek"]
[Result "1/2-1/2"]
[ECO "A42"]
[WhiteElo "1824"]
[BlackElo "1446"]
[Annotator "NA RC COMBH"]
[PlyCount "76"]
[EventDate "2022.08.13"]
[EventCountry "POL"]
[SourceTitle "playchess.com"]
[Source "ChessBase"]
[SourceQuality "1"]
[TimeControl "40/5400+30:1800+30"]

1. d4 {[%emt 0:00:03]} g6 {[%emt 0:00:12]} 2. c4 {[%emt 0:00:29]} Bg7 {[%emt 0:00:06]} 3. Nc3 {[%emt 0:00:16]} d6 {[%emt 0:00:18]} 4. e4 {[%emt 0:00:24]} c6 {[%emt 0:00:20]} 5. Nf3 {[%emt 0:00:55]} Bg4 {[%emt 0:00:18]} 6. Be2 {[%emt 0:00:34]} Qc7 {[%emt 0:00:57]} 7. O-O {[%emt 0:04:18]} Nf6 {[%emt 0:00:12]} 8. Be3 {[%emt 0:01:23]} O-O {[%emt 0:00:15]} 9. Qd2 {[%emt 0:01:16]} Nbd7 {[%emt 0:03:32]} 10. Rac1 {[%emt 0:13:20]} Rad8 {[%emt 0:02:55]} 11. h3 {[%emt 0:04:38]} Bxf3 12. Bxf3 a6 {[%emt 0:07:28]} 13. Rfd1 {[%emt 0:05:48]} e5 {[%emt 0:04:33]} 14. d5 {[%emt 0:00:38]} c5 {[%emt 0:00:37]} 15. Bg5 {[%emt 0:04:06]} Rb8 {[%emt 0:02:03]} 16. Be2 {[%emt 0:01:55]} h5 {[%emt 0:03:42]} 17. g4 {[%emt 0:07:59]} hxg4 {[%emt 0:00:39]} 18. hxg4 {[%emt 0:00:02]} b5 {[%emt 0:05:37]} 19. f3 {[%emt 0:01:55]} b4 {[%emt 0:01:38]} 20. Na4 {[%emt 0:05:26]} Nh7 {[%emt 0:01:30]} 21. Be7 {[%emt 0:02:11]} Rfe8 {[%emt 0:01:20]} 22. Bh4 {[%emt 0:00:08]} f6 {[%emt 0:04:08]} 23. Kg2 {[%emt 0:04:13]} g5 {[%emt 0:00:21]} 24. Bf2 {[%emt 0:01:03]} Kf7 {[%emt 0:00:28]} 25. Rh1 {[%emt 0:01:57]} Nhf8 {[%emt 0:00:31]} 26. b3 {[%emt 0:04:18]} Ng6 {[%emt 0:00:06]} 27. Bg3 {[%emt 0:01:37]} Ndf8 {[%emt 0:00:34]} 28. Nb2 {[%emt 0:01:20]} Nf4+ {[%emt 0:00:15]} 29. Kf2 {[%emt 0:02:02]} N8g6 {[%emt 0:00:18]} 30. Nd1 {[%emt 0:10:31]} Rh8 {[%emt 0:01:08]} 31. Rxh8 {[%emt 0:00:20]} Rxh8 {[%emt 0:00:02]} 32. Bf1 {[%emt 0:00:15]} Qc8 {[%emt 0:02:03]} 33. Ne3 {[%emt 0:00:33]} Ne7 {[%emt 0:00:52]} 34. Bg2 {[%emt 0:01:38]} Rh7 {[%emt 0:06:43]} 35. Rh1 {[%emt 0:06:15]} Qh8 {[%emt 0:00:26]} 36. Rxh7 {[%emt 0:00:20]} Qxh7 {[%emt 0:00:02]} 37. Nf5 {[%emt 0:01:02]} Nxf5 {[%emt 0:00:23]} 38. exf5 {[%emt 0:00:10]} Nh3+ {[%emt 0:01:51]} 1/2-1/2